bitfinex-derivatives/quotes_ETHF0:USTF0_20260303
["timestamp","ask_amount","ask_price","bid_price","bid_amount"]
[1772536009436,0.28551664,1959.1,1958.4,0.54259501]
[1772536011147,0.28509629,1959.3,1958.4,0.54259501]
[1772536011548,0.28509629,1959.6,1958.4,0.54259501]
[1772536011945,0.28199464,1959.5,1958.4,0.54259501]
[1772536013650,0.28199464,1959.6,1958.4,0.54259501]
[1772536016049,6.688,1960.0,1958.6,0.53837157]
[1772536016251,0.29264476,1959.8,1958.6,0.53837157]
[1772536020551,0.3014039,1959.6,1958.6,0.53837157]
[1772536020756,0.3014039,1959.2,1958.6,0.53837157]
[1772536020953,0.3014039,1959.2,1958.4,0.54259501]
[1772536021652,0.44902217,1959.1,1958.4,0.54259501]
[1772536025364,0.44922008,1958.9,1958.4,0.00422344]
[1772536025571,0.4536335,1958.9,1958.4,0.54259501]
[1772536025764,0.4536335,1958.9,1958.4,0.00422344]
[1772536026067,0.4536335,1958.9,1958.4,0.54259501]
[1772536026465,0.4536335,1958.9,1958.4,0.00422344]
[1772536027066,0.4536335,1958.9,1958.4,0.54259501]
[1772536027964,0.00441342,1958.9,1958.4,0.54259501]
[1772536028164,0.45220782,1959.3,1958.4,0.54259501]
[1772536028563,0.45220782,1959.2,1958.4,0.54259501]
[1772536029067,0.45622201,1959.2,1958.4,0.54259501]
[1772536031968,0.00401419,1959.2,1958.4,0.54259501]
[1772536032669,0.47615602,1959.2,1958.4,0.54259501]
[1772536032869,0.00401419,1959.2,1958.4,0.54259501]
[1772536033372,0.47615602,1959.2,1958.4,0.54259501]
[1772536035471,0.47564906,1959.1,1958.4,0.54259501]
[1772536035672,0.47564906,1959.0,1958.4,0.54259501]
[1772536035868,7.50477349,1959.1,1958.4,0.54259501]
[1772536036071,0.73492325,1959.2,1958.4,0.54259501]
[1772536036663,0.47630178,1959.1,1958.4,0.54259501]
[1772536037975,0.25927419,1959.2,1958.4,0.54259501]
[1772536037976,0.00401419,1959.2,1958.4,0.54259501]
[1772536038472,0.4776553,1959.2,1958.4,0.54259501]
[1772536039173,0.47443585,1959.1,1958.4,0.54259501]
[1772536043065,0.45793544,1959.0,1958.4,0.54259501]
[1772536044278,7.50604944,1959.1,1958.4,0.54259501]
[1772536044477,0.4634716,1959.2,1958.4,0.54259501]
[1772536044675,0.45945741,1959.1,1958.4,0.54259501]
[1772536045879,0.00401419,1959.2,1958.4,0.54259501]
[1772536047977,0.45816004,1959.2,1958.4,0.54259501]
[1772536050870,0.45912439,1959.0,1958.4,0.54259501]
[1772536051985,0.25526,1959.1,1958.4,0.54259501]
[1772536052176,0.46510506,1959.2,1958.4,0.54259501]
[1772536052679,0.46510506,1959.2,1958.4,0.00422344]
[1772536052680,7.97687311,1959.1,1958.4,0.00422344]
[1772536052876,0.46109087,1958.9,1958.4,0.00422344]
[1772536053174,0.46109087,1958.9,1957.6,0.25545]
[1772536053375,0.46109087,1958.7,1957.7,0.55464231]
[1772536053577,0.46109087,1958.5,1957.7,0.55464231]
[1772536054176,0.46109087,1958.5,1957.7,0.55994404]
[1772536054581,0.46325869,1958.4,1957.7,0.55994404]
[1772536054877,0.46325869,1958.3,1957.5,0.55464231]
[1772536055081,0.46325869,1958.2,1957.5,0.55464231]
[1772536055376,0.46325869,1958.2,1957.3,0.55464231]
[1772536055874,0.46325869,1958.2,1957.3,0.55900105]
[1772536056081,0.4783558,1958.1,1957.3,0.55900105]
[1772536057878,0.4783558,1958.0,1957.3,0.55900105]
[1772536058078,0.4783558,1958.0,1957.3,0.00435874]
[1772536059575,0.4783558,1958.0,1957.3,0.55900105]
[1772536059779,0.47473357,1958.1,1957.3,0.55900105]
[1772536060383,0.47088248,1957.9,1957.0,0.55464231]
[1772536060579,0.46652374,1958.0,1957.0,0.55464231]
[1772536060786,7.15752374,1958.1,1957.0,0.55464231]
[1772536061179,0.46652374,1958.0,1957.0,0.55464231]
[1772536061380,0.46652374,1958.0,1957.0,0.56107258]
[1772536066193,0.46491529,1958.4,1957.0,0.56107258]
[1772536066492,0.46491529,1958.2,1957.0,0.56107258]
[1772536068588,0.46385224,1958.4,1957.1,0.56753574]
[1772536069891,0.46385224,1958.4,1957.2,0.25551]
[1772536070092,0.46385224,1958.4,1957.3,0.56753574]
[1772536079199,0.45623798,1958.5,1957.5,0.56753574]
[1772536080401,0.45215697,1958.9,1957.9,0.56753574]
[1772536081500,7.97147747,1959.1,1958.1,0.56753574]
[1772536081701,0.45215697,1959.1,1958.1,0.56753574]
[1772536083206,0.00401419,1959.2,1958.1,0.56753574]
[1772536083404,0.00401419,1959.2,1958.3,0.56753574]
[1772536084304,0.47628216,1959.2,1958.3,0.56753574]
[1772536086402,0.00401419,1959.2,1958.3,0.56753574]
[1772536088398,0.48502549,1959.9,1958.7,0.56753574]
[1772536088602,0.48502549,1959.9,1958.8,0.56753574]
[1772536089204,0.25517,1959.8,1958.8,0.56753574]
[1772536089407,0.48502549,1959.5,1958.8,0.57311209]
[1772536089607,0.48502549,1959.5,1958.8,0.00557635]
[1772536090203,0.49741067,1959.3,1958.5,0.56753574]
[1772536090410,0.49741067,1959.1,1958.2,0.56753574]
[1772536091208,0.49741067,1959.1,1958.2,0.57272113]
[1772536091609,0.49741067,1959.1,1958.2,0.00518539]
[1772536091807,0.49741067,1958.9,1958.2,0.00518539]
[1772536092106,0.49741067,1958.9,1958.2,0.57272113]
[1772536092806,0.48890243,1959.4,1958.2,0.57272113]
[1772536093906,0.47174508,1959.5,1958.2,0.57272113]
[1772536094113,0.47174508,1959.7,1958.6,0.56753574]
[1772536094313,0.00561065,1959.8,1958.8,0.56753574]
[1772536094915,0.47735573,1959.8,1958.8,0.56753574]
[1772536095415,0.00561065,1959.8,1958.8,0.56753574]
[1772536096521,0.47370172,1959.8,1958.8,0.56753574]
[1772536098118,0.47943026,1959.2,1958.3,0.5837734]
[1772536102325,0.49438075,1959.0,1958.3,0.5837734]
[1772536102525,0.49438075,1958.8,1958.0,0.57963623]
[1772536103624,0.49438075,1958.8,1958.0,0.58565089]
[1772536104019,0.48734016,1958.6,1958.0,0.00601466]
[1772536104726,0.48734016,1958.6,1957.8,0.57963623]
[1772536104926,0.48734016,1958.6,1957.6,0.57963623]
[1772536105828,0.48734016,1958.6,1957.6,0.58501754]
[1772536108630,0.47554254,1958.4,1957.6,0.58501754]
[1772536108829,0.4814622,1958.4,1957.6,0.58501754]
[1772536114933,0.00591966,1958.4,1957.6,0.58501754]
[1772536115534,0.47898899,1958.4,1957.6,0.58501754]
[1772536115731,0.00591966,1958.4,1957.6,0.58501754]
[1772536118735,0.47015882,1959.0,1958.0,0.57963623]
[1772536119038,0.47015882,1959.3,1958.1,0.57963623]
[1772536119832,0.47450188,1959.3,1958.1,0.57963623]
[1772536120331,0.47430436,1959.2,1958.1,0.57963623]
[1772536120728,0.47430436,1959.0,1958.1,0.57963623]
[1772536120933,0.47430436,1958.8,1958.1,0.57963623]
[1772536122935,0.47430436,1958.8,1957.9,0.57963623]
[1772536123831,0.25531,1958.7,1957.9,0.57963623]
[1772536124036,0.48717051,1958.6,1957.9,0.57963623]
[1772536124238,0.48717051,1958.6,1957.7,0.57963623]
[1772536125839,0.48717051,1958.6,1957.6,0.00538131]
[1772536125840,0.48717051,1958.2,1957.6,0.58501754]
[1772536126242,0.48717051,1958.2,1957.6,0.00538131]
[1772536126438,0.48185769,1958.5,1957.6,0.58501754]
[1772536126738,0.48185769,1958.4,1957.6,0.58501754]
[1772536127543,0.48185769,1958.3,1957.6,0.58501754]
[1772536129242,0.47386355,1958.3,1957.6,0.58501754]
[1772536129739,7.9906744,1958.5,1957.6,0.58501754]
[1772536129944,7.51681085,1958.5,1957.6,0.58501754]
[1772536130146,0.47599198,1958.4,1957.6,0.58501754]
[1772536130439,0.47599198,1958.3,1957.6,0.58501754]
[1772536130748,7.99581528,1958.3,1957.6,0.00538131]
[1772536131046,0.47599198,1958.1,1957.6,0.00538131]
[1772536132435,0.46952909,1958.0,1957.3,0.56894911]
[1772536132843,7.99544885,1958.0,1957.3,0.56894911]
[1772536133035,0.46952909,1957.9,1957.3,0.56894911]
[1772536133438,0.47491442,1957.9,1957.3,0.57521334]
[1772536134236,0.47491442,1957.9,1957.3,0.00626423]
[1772536134841,0.47491442,1957.9,1957.3,0.57521334]
[1772536136249,0.46742275,1957.8,1957.3,0.57521334]
[1772536136450,0.46742275,1957.7,1957.1,0.56894911]
[1772536136655,0.25548,1957.4,1956.7,0.56894911]
[1772536136948,0.46742275,1957.3,1956.1,0.56894911]
[1772536137652,0.46742275,1957.3,1956.1,0.57453981]
[1772536138045,0.25551,1957.2,1956.1,0.57453981]
[1772536138349,0.46806396,1957.1,1956.1,0.57453981]
[1772536140254,0.48652772,1957.2,1956.1,0.57453981]
[1772536140853,0.48652772,1957.7,1956.5,0.56894911]
[1772536142356,0.4856092,1957.6,1956.5,0.56894911]
[1772536143553,0.00538533,1957.9,1956.7,0.56894911]
[1772536143753,0.49099453,1957.9,1956.7,0.56894911]
[1772536143953,0.00538533,1957.9,1956.9,0.56894911]
[1772536144149,0.00538533,1957.9,1957.1,0.56894911]
[1772536144556,0.48405906,1957.9,1957.1,0.56894911]
[1772536146758,0.00538533,1957.9,1957.1,0.56894911]
[1772536147160,0.4874971,1957.9,1957.1,0.56894911]
[1772536147663,0.00538533,1957.9,1957.1,0.56894911]
[1772536148463,0.48211177,1958.3,1957.2,0.56894911]
[1772536148761,0.48691499,1958.6,1957.2,0.56894911]
[1772536148961,0.48691499,1958.6,1957.5,0.56894911]
[1772536149461,0.4908267,1958.6,1957.5,0.57277277]
[1772536150264,0.48684651,1958.5,1957.5,0.57277277]
[1772536150660,7.99911208,1958.5,1957.5,0.57277277]
[1772536150856,0.48684651,1958.4,1957.5,0.57277277]
[1772536151466,0.48684651,1958.2,1957.5,0.57277277]
[1772536151665,0.48684651,1958.1,1957.3,0.56894911]
[1772536152264,7.18620112,1958.3,1957.3,0.56894911]
[1772536152465,0.49520112,1958.2,1957.3,0.56894911]
[1772536152666,0.49520112,1958.2,1957.3,0.57376791]
[1772536153068,0.49520112,1958.0,1957.3,0.0048188]
[1772536155270,0.49520112,1958.0,1957.3,0.57376791]
[1772536156067,0.25539,1958.1,1957.3,0.57376791]
[1772536156272,0.49451532,1957.9,1957.3,0.0048188]
[1772536156669,0.49451532,1957.8,1956.5,0.56894911]
[1772536157276,8.02128138,1958.0,1956.8,0.56894911]
[1772536157479,0.49451532,1958.0,1956.8,0.56894911]
[1772536157674,0.49451532,1958.0,1956.8,0.57366277]
[1772536158075,0.49686145,1958.2,1957.1,0.55102634]
[1772536158273,0.49686145,1958.2,1957.0,1.53325908]
[1772536158274,0.49686145,1958.4,1957.4,0.55102634]
[1772536158576,7.52644044,1958.5,1957.4,0.55102634]
[1772536158776,8.02330189,1958.5,1957.4,0.55102634]
[1772536158976,0.00391171,1958.6,1957.6,0.57862918]
[1772536159172,0.00391171,1958.6,1957.7,0.57862918]
[1772536160177,0.49898997,1958.6,1957.7,0.57862918]
[1772536161080,0.00391171,1958.6,1957.7,0.57862918]
[1772536161285,0.49507826,1959.0,1957.9,0.57862918]
[1772536161784,0.49898997,1959.2,1957.9,0.57862918]
[1772536162283,0.50286353,1959.2,1957.9,0.57862918]
[1772536163985,0.49023494,1959.1,1957.9,0.57862918]
[1772536164184,0.49023494,1958.8,1957.9,0.57862918]
[1772536164479,0.25531,1958.7,1957.9,0.57862918]
[1772536164680,0.49023494,1958.4,1957.2,0.57862918]
[1772536164881,6.69,1958.6,1957.2,0.57862918]
[1772536164882,0.49023494,1958.2,1957.2,0.57862918]
[1772536165084,0.49023494,1958.0,1957.2,0.57862918]
[1772536165282,0.49023494,1957.8,1956.9,0.57862918]
[1772536165588,0.49023494,1957.7,1956.9,0.57862918]
[1772536166183,0.00569111,1957.8,1956.9,0.57862918]
[1772536166389,0.50086626,1957.8,1956.9,0.57862918]
[1772536167484,0.50086626,1958.3,1956.9,0.57862918]
[1772536168789,0.50445652,1958.3,1956.9,0.57862918]
[1772536169184,0.00359026,1958.3,1957.1,0.57862918]
[1772536169390,0.00359026,1958.3,1957.3,0.57862918]
[1772536169988,0.50287106,1958.3,1957.3,0.57862918]
[1772536170290,0.00359026,1958.3,1957.3,0.57862918]
[1772536170891,0.4992808,1958.1,1957.3,0.57862918]
[1772536171185,0.50287106,1958.3,1957.3,0.57862918]
[1772536172088,0.00359026,1958.3,1957.3,0.57862918]
[1772536174393,8.02034338,1958.7,1957.5,0.57862918]
[1772536174593,0.50051148,1958.7,1957.5,0.57862918]
[1772536175094,0.50051148,1958.7,1957.7,0.57862918]
[1772536175289,4.51141276,1959.2,1957.7,0.57862918]
[1772536175290,0.50051148,1958.9,1957.7,0.57862918]
[1772536175495,0.00512602,1958.9,1957.9,0.57862918]
[1772536175990,0.50588852,1958.9,1957.9,0.57862918]
[1772536176395,0.5007625,1958.7,1957.1,0.57862918]
[1772536176593,0.5007625,1958.7,1957.3,0.57862918]
[1772536177593,0.5007625,1958.6,1957.3,0.57862918]
[1772536178098,0.50232728,1958.3,1957.3,0.57862918]
[1772536182997,4.51146276,1958.8,1957.3,0.25548]
[1772536183197,0.49829903,1958.7,1957.4,0.57862918]
[1772536183398,0.49829903,1958.6,1957.4,0.57862918]
[1772536183599,0.75359903,1958.8,1957.6,0.57862918]
[1772536183790,0.49829903,1958.8,1957.6,0.57862918]
[1772536183992,0.00512602,1958.9,1957.8,0.57862918]
[1772536184194,0.50551862,1958.9,1957.8,0.57862918]
[1772536185003,0.5003926,1958.8,1957.8,0.57862918]
[1772536185901,0.50418792,1959.6,1958.3,0.57862918]
[1772536186100,0.50418792,1959.6,1958.4,0.57862918]
[1772536186906,0.50999633,1959.6,1958.4,0.58342981]
[1772536187794,0.00580841,1959.6,1958.4,0.58342981]
[1772536187995,0.48872521,1960.2,1958.9,0.57866633]
[1772536188197,0.48872521,1960.2,1959.1,0.57866633]
[1772536188998,0.49386964,1960.2,1959.1,0.57866633]
[1772536189706,0.00514443,1960.2,1959.1,0.57866633]
[1772536190206,0.49148676,1960.8,1959.2,0.57866633]
[1772536191105,0.49707914,1960.8,1959.2,0.57866633]
[1772536192004,0.50102453,1960.6,1959.2,0.57866633]
[1772536193409,0.50102453,1960.4,1959.2,0.57866633]
[1772536194504,0.50102453,1960.4,1959.0,6.69]
[1772536194505,0.49732919,1960.2,1959.0,7.26866633]
[1772536194704,0.49732919,1960.0,1959.0,0.57866633]
[1772536195305,0.49732919,1960.4,1959.1,0.57866633]
[1772536195802,0.49732919,1960.6,1959.1,0.57866633]
[1772536196207,0.00559238,1960.8,1959.1,0.57866633]
[1772536196408,0.49691505,1960.8,1959.1,0.57866633]
[1772536197107,0.00559238,1960.8,1959.4,0.25522]
[1772536197312,0.00559238,1960.8,1959.5,0.57866633]
[1772536198015,0.48185563,1960.8,1959.5,0.57866633]
[1772536199308,0.00559238,1960.8,1959.5,0.57866633]
[1772536199517,0.48185563,1960.8,1959.5,0.57866633]
[1772536200416,0.45419569,1960.7,1959.5,0.57866633]
[1772536200816,0.45419569,1960.5,1959.1,0.57866633]
[1772536201314,0.25509,1960.4,1959.1,0.57866633]
[1772536201613,0.45419569,1960.3,1959.1,0.57866633]
[1772536203023,0.25511,1960.2,1959.1,0.57866633]
[1772536203213,0.45036139,1960.1,1959.1,0.57866633]
[1772536203517,11.39252415,1960.7,1959.1,6.85806633]
[1772536203714,0.45036139,1960.6,1959.5,0.57866633]
[1772536204613,0.00559238,1960.8,1959.5,0.57866633]
[1772536204815,0.25499,1961.2,1959.2,12.96512]
[1772536204816,0.70813161,1961.2,1959.9,0.57866633]
[1772536205016,0.45314161,1961.1,1960.0,0.57866633]
[1772536205717,0.45314161,1961.1,1960.0,0.58361527]
[1772536205919,0.45752886,1961.1,1960.0,0.58361527]
[1772536207014,0.25501,1961.0,1960.0,0.58361527]
[1772536207216,0.25504,1960.8,1960.0,0.58361527]
[1772536207417,0.25506,1960.6,1959.8,0.57866633]
[1772536207717,0.45834898,1960.3,1959.5,0.57866633]
[1772536208416,0.25511,1960.2,1958.9,6.686]
[1772536208616,0.46279544,1960.1,1959.1,0.57866633]
[1772536209620,0.46279544,1960.1,1959.1,0.58481103]
[1772536214219,0.46796265,1960.3,1959.1,0.58481103]
[1772536214916,7.78935266,1960.5,1959.1,0.84006103]
[1772536215121,7.33111136,1960.4,1959.2,0.57866633]
[1772536215316,0.46796265,1960.5,1959.4,0.57866633]
[1772536216721,0.47033107,1960.8,1959.6,0.57866633]
[1772536217020,0.47033107,1960.6,1959.7,0.57866633]
[1772536217225,7.8031866,1960.5,1959.7,0.57866633]
[1772536217522,0.47033107,1960.5,1959.7,0.57866633]
[1772536218926,7.33644783,1960.6,1959.7,0.57866633]
[1772536219122,0.4742528,1960.6,1959.7,0.57866633]
[1772536219626,7.81059824,1960.6,1959.7,0.57866633]
[1772536219823,0.4742528,1960.6,1959.7,0.57866633]
[1772536220228,0.47600657,1960.5,1959.7,0.57866633]
[1772536220728,7.81264028,1960.7,1959.7,0.57866633]
[1772536221031,0.47600657,1960.6,1959.7,0.57866633]
[1772536222828,0.47600657,1960.6,1959.1,6.6921447]
[1772536222829,0.47613021,1960.4,1959.2,0.59554834]
[1772536223531,7.33675797,1960.5,1959.2,0.59554834]
[1772536223729,0.47613021,1960.4,1959.2,0.59554834]
[1772536223927,0.73122021,1960.4,1959.2,0.59554834]
[1772536224129,0.47471229,1960.3,1959.2,0.59554834]
[1772536224327,0.47471229,1960.2,1959.2,0.59554834]
[1772536224528,0.47471229,1960.0,1959.2,0.59554834]
[1772536225028,0.47471229,1959.8,1959.1,0.0061447]
[1772536225226,0.47471229,1959.6,1959.1,0.0061447]
[1772536225426,0.48012703,1959.6,1958.9,0.59554834]
[1772536225825,0.47471229,1959.4,1958.4,0.59554834]
[1772536226430,0.48047664,1959.6,1958.4,0.60180027]
[1772536226926,0.48047664,1959.6,1958.5,0.59554834]
[1772536227128,0.00541474,1959.6,1958.5,0.59554834]
[1772536227528,0.00541474,1959.6,1958.5,0.85087834]
[1772536227728,0.00541474,1959.6,1958.6,0.59554834]
[1772536231541,0.48978756,1960.1,1958.8,0.59554834]
[1772536231836,0.48978756,1960.1,1959.0,0.59554834]
[1772536232631,0.49495381,1960.1,1959.0,0.59554834]
[1772536232831,0.00516625,1960.1,1959.1,0.59554834]
[1772536233438,0.49829718,1960.1,1959.1,0.59554834]
[1772536235839,0.49837621,1960.8,1959.7,0.59554834]
[1772536236038,0.49837621,1960.7,1959.7,0.59554834]
[1772536236336,0.75690026,1960.9,1959.7,0.59554834]
[1772536236842,0.2601067,1960.9,1959.7,0.59554834]
[1772536237045,0.0050667,1960.9,1959.7,0.59554834]
[1772536237845,0.50692696,1960.9,1959.7,0.59554834]
[1772536238843,0.500288,1960.8,1959.7,0.59554834]
[1772536240352,0.50747044,1960.4,1959.3,0.59554834]
[1772536241744,0.50747044,1960.2,1959.3,0.59554834]
[1772536242748,0.50715718,1960.4,1959.3,0.59554834]
[1772536244353,0.49938496,1960.1,1959.3,0.59554834]
[1772536246046,0.25511,1960.2,1959.3,0.59554834]
[1772536246348,0.49733663,1960.3,1959.3,0.59554834]
[1772536247045,0.49733663,1960.5,1959.5,0.59554834]
[1772536247847,0.49765408,1960.3,1959.5,0.59554834]
[1772536248452,0.50034209,1960.7,1959.5,0.59554834]
[1772536248647,0.25504,1960.8,1959.5,0.59554834]
[1772536248648,0.50034209,1960.6,1959.5,0.59554834]
[1772536250752,0.50277137,1960.4,1959.5,0.59554834]
[1772536252347,0.25508,1960.5,1959.5,0.59554834]
[1772536252551,0.50378409,1960.6,1959.5,0.59554834]
[1772536254152,0.50276281,1960.2,1959.5,0.59554834]
[1772536255955,0.50276281,1960.4,1959.5,0.59554834]
[1772536261456,0.50170611,1960.3,1959.5,0.59554834]
[1772536261760,0.50170611,1960.1,1959.5,0.59554834]
[1772536262561,0.50707188,1960.5,1959.5,0.59554834]
[1772536262762,0.50707188,1960.3,1959.5,0.59554834]
[1772536262963,0.50707188,1960.2,1959.5,0.59554834]
[1772536263667,0.50707188,1960.2,1959.3,0.54854338]
[1772536264167,0.5041698,1960.1,1959.1,0.54854338]
[1772536264756,0.5041698,1959.8,1959.1,0.54854338]
[1772536265467,7.94041253,1959.8,1958.9,0.54854338]
[1772536265661,0.5041698,1959.5,1958.5,0.54854338]
[1772536265861,0.50824114,1959.5,1958.5,0.54854338]
[1772536266265,0.00407134,1959.5,1958.5,0.54854338]
[1772536266567,0.50962158,1959.5,1958.5,0.54854338]
[1772536267268,0.00407134,1959.5,1958.5,0.54854338]
[1772536268068,0.50399177,1959.5,1958.5,0.54854338]
[1772536268868,0.50399177,1960.0,1958.8,0.54854338]
[1772536269068,6.63085584,1960.3,1958.7,1.5316237]
[1772536269069,0.50399177,1959.9,1959.0,0.54854338]
[1772536269962,0.51026249,1959.9,1959.0,0.54854338]
[1772536270163,0.50964083,1959.8,1959.0,0.54854338]
[1772536272372,0.50964083,1959.8,1958.8,0.54854338]
[1772536272572,0.49131816,1959.7,1958.8,0.54854338]
[1772536272969,0.49758888,1959.9,1958.8,0.54854338]
[1772536273667,0.00627072,1959.9,1959.0,2.08016708]
[1772536273868,0.00627072,1959.9,1959.2,0.54854338]
[1772536274263,0.49175633,1960.4,1959.2,0.54854338]
[1772536274468,7.94459744,1960.6,1959.6,0.54854338]
[1772536274665,0.49802705,1960.6,1959.6,0.54854338]
[1772536275070,0.49802705,1960.8,1959.6,0.54854338]
[1772536275374,0.50423127,1960.8,1959.6,0.54854338]
[1772536275673,0.50423127,1960.8,1959.8,0.54854338]
[1772536275875,0.50423127,1960.8,1959.8,0.55356781]
[1772536277275,0.00620422,1960.8,1959.8,0.55356781]
[1772536278471,0.50727124,1960.8,1959.8,0.55356781]
[1772536279070,0.00620422,1960.8,1959.8,0.55356781]
[1772536281275,0.00620422,1960.8,1960.0,0.56356153]
[1772536281578,0.50639739,1961.2,1960.0,0.56356153]
[1772536282278,0.5127772,1961.4,1960.3,0.56356153]
[1772536282470,0.51688467,1961.4,1960.4,0.56356153]
[1772536285180,0.50614867,1961.0,1960.2,0.56356153]
[1772536287075,0.50551326,1961.4,1960.2,0.56356153]
[1772536291480,0.5038599,1961.2,1960.2,0.56356153]
[1772536292980,0.50553925,1961.0,1960.2,0.56356153]
[1772536293180,0.50553925,1960.8,1960.0,0.56356153]
[1772536293385,0.50553925,1960.6,1959.8,0.56858596]
[1772536295486,0.50553925,1960.6,1959.8,0.00502443]
[1772536296079,0.50553925,1960.6,1959.8,0.56858596]
[1772536298680,0.48728876,1960.2,1959.6,0.56356153]
[1772536299786,0.48728876,1960.2,1959.6,0.56897803]
[1772536300585,0.48468492,1960.7,1959.6,0.56897803]
[1772536300787,0.48468492,1960.6,1959.6,0.56897803]
[1772536301785,0.48468492,1960.8,1959.6,0.56897803]
[1772536301988,0.48468492,1960.7,1959.6,0.56897803]
[1772536302996,0.48468492,1960.7,1959.7,0.56356153]
[1772536303795,0.47429006,1960.8,1959.7,0.56356153]
[1772536305088,0.25503,1960.9,1959.7,0.56356153]
[1772536305089,0.48016975,1960.7,1959.7,0.56356153]
[1772536308204,0.48481919,1960.5,1959.7,0.56356153]
[1772536308400,0.48481919,1960.5,1959.6,0.0054165]
[1772536308600,0.48481919,1960.3,1959.6,0.0054165]
[1772536309501,0.48481919,1960.3,1959.6,0.58642547]
[1772536312303,0.4813487,1960.1,1959.6,0.0054165]
[1772536313712,0.4813487,1960.3,1959.6,0.58642547]
[1772536318009,0.25506,1960.6,1959.6,0.58642547]
[1772536318210,0.75737776,1960.6,1959.6,0.58642547]
[1772536318410,0.50231776,1960.6,1959.6,0.58642547]
[1772536318612,0.50231776,1960.8,1959.6,0.58642547]
[1772536319211,0.50231776,1960.7,1959.6,0.58642547]
[1772536319413,0.50231776,1960.6,1959.6,0.58642547]
[1772536319710,0.50231776,1960.9,1959.8,0.58100897]
[1772536319911,7.9357998,1960.9,1959.8,0.58100897]
[1772536320112,0.50231776,1960.9,1959.8,0.58100897]
[1772536320513,0.50218989,1960.8,1959.8,0.58100897]
[1772536320812,0.50218989,1960.6,1959.8,0.58100897]
[1772536321007,0.50218989,1960.5,1959.8,0.58100897]
[1772536321412,0.50218989,1960.3,1959.6,0.58642547]
[1772536321808,0.50218989,1960.2,1959.6,0.0054165]
[1772536322208,7.94649221,1960.2,1959.6,0.0054165]
[1772536322411,0.50218989,1960.2,1959.6,0.0054165]
[1772536322606,7.44759945,1960.3,1959.6,0.58642547]
[1772536322913,0.50813646,1960.5,1959.6,0.58642547]
[1772536323114,0.50813646,1960.3,1959.6,0.58642547]
[1772536324616,0.50615417,1960.2,1959.6,0.58642547]
[1772536324812,0.50615417,1960.2,1959.6,0.0054165]
[1772536325715,0.50615417,1960.2,1959.6,0.58642547]
[1772536328724,7.44875186,1960.3,1959.6,0.58642547]
[1772536329017,7.9466599,1960.3,1959.6,0.58642547]
[1772536329618,0.49790804,1960.2,1959.6,0.58642547]
[1772536332223,0.50726518,1960.6,1959.6,0.58642547]
[1772536332423,7.95597926,1960.5,1959.6,0.58642547]
[1772536332724,0.50726518,1960.5,1959.6,0.58642547]
[1772536333120,7.95594953,1960.5,1959.6,0.58642547]
[1772536333320,0.50726518,1960.5,1959.6,0.58642547]
[1772536333624,7.44986307,1960.6,1959.6,0.58642547]
[1772536333826,0.50726518,1960.6,1959.6,0.58642547]
[1772536334027,0.50630643,1960.8,1959.6,0.58642547]
[1772536334230,7.45023779,1960.7,1959.6,0.58642547]
[1772536334525,0.50630643,1961.0,1960.0,0.58100897]
[1772536334726,0.5104139,1961.4,1960.4,0.58100897]
[1772536335126,0.50630643,1961.2,1960.4,0.58100897]
[1772536337728,0.50722099,1961.4,1960.4,0.58100897]
[1772536337928,0.50311352,1961.3,1960.4,0.58100897]
[1772536339026,0.49308349,1961.1,1960.4,0.58100897]
[1772536339729,0.49308349,1961.1,1959.7,6.686]
[1772536339929,0.49308349,1960.9,1959.8,0.54065778]
[1772536342020,0.49225671,1960.7,1959.8,0.54065778]
[1772536344632,0.49219011,1960.9,1959.8,0.54065778]
[1772536344828,0.49219011,1961.1,1959.8,0.54065778]
[1772536345028,0.49219011,1961.3,1960.0,0.54065778]
[1772536345332,0.49219011,1961.3,1960.1,0.54065778]
[1772536347833,0.48630155,1961.1,1960.1,0.54065778]
[1772536348534,0.49425503,1960.9,1960.1,0.54065778]
[1772536348728,0.49425503,1960.9,1959.7,0.54065778]
[1772536349531,0.49425503,1960.8,1959.7,0.54065778]
[1772536350730,0.50623357,1960.6,1959.7,0.54065778]
[1772536351532,0.50623357,1960.4,1959.6,0.0054165]
[1772536351733,0.76133357,1960.3,1959.6,0.0054165]
[1772536351929,0.50623357,1960.2,1959.6,0.0054165]
[1772536353236,0.50623357,1960.2,1959.0,0.54065778]
[1772536354234,0.50623357,1960.2,1959.0,0.54570068]
[1772536357137,0.55857855,1960.0,1959.0,0.54570068]
[1772536357432,0.55857855,1959.8,1959.0,0.54570068]
[1772536357633,0.55857855,1959.8,1959.0,0.0050429]
[1772536357839,0.55857855,1959.4,1958.8,0.54065778]
[1772536358530,0.55857855,1959.4,1958.6,0.54065778]
[1772536358933,0.55857855,1959.4,1958.6,0.54555514]
[1772536361139,0.55857855,1959.8,1958.6,0.54555514]
[1772536363841,0.81816338,1960.0,1958.8,0.54065778]
[1772536364140,0.55857855,1959.9,1958.8,0.54065778]
[1772536364340,0.00443483,1960.0,1958.8,0.54065778]
[1772536364845,0.56301338,1960.0,1958.8,0.54065778]
[1772536368343,0.00443483,1960.0,1959.1,0.56287443]
[1772536368550,0.57935197,1960.0,1959.1,0.56287443]
[1772536369949,0.00443483,1960.0,1959.1,0.56287443]
[1772536371251,0.57935197,1960.0,1959.1,0.56287443]
[1772536372653,0.00443483,1960.0,1959.1,0.56287443]
[1772536372951,0.57935197,1960.0,1959.1,0.56287443]
[1772536374947,0.57491714,1959.8,1959.1,0.56287443]
[1772536376754,0.00443483,1960.0,1958.9,0.56287443]
[1772536376755,0.57491714,1959.6,1958.9,0.56287443]
[1772536378656,0.83009714,1959.7,1958.9,0.56287443]
[1772536378856,0.57491714,1959.6,1958.9,0.56287443]
[1772536379458,0.57491714,1959.8,1958.9,0.56287443]
[1772536380665,7.96172109,1959.9,1958.9,0.56287443]
[1772536380865,0.57491714,1959.9,1958.9,0.56287443]
[1772536381552,0.00443483,1960.0,1958.9,0.56287443]
[1772536381851,0.57935197,1960.0,1958.9,0.56287443]
[1772536382755,0.57491714,1959.8,1958.9,0.56287443]
[1772536382950,7.39417052,1959.8,1958.9,0.56287443]
[1772536383152,0.57491714,1959.7,1958.9,0.56287443]
[1772536385063,0.57491714,1959.7,1958.6,0.00489736]
[1772536385064,0.57491714,1959.5,1958.7,0.56287443]
[1772536385561,0.57491714,1959.4,1958.7,0.56287443]
[1772536388567,0.57491714,1959.2,1958.6,0.00489736]
[1772536389462,0.57491714,1959.2,1957.9,0.2554]
[1772536389463,0.57491714,1959.1,1958.3,0.56287443]
[1772536389669,0.57491714,1959.0,1958.3,0.56287443]
[1772536389863,0.57491714,1958.9,1958.3,0.56287443]
[1772536390561,0.57491714,1958.9,1958.3,0.568553]
[1772536390970,0.57398793,1959.1,1958.3,0.568553]
[1772536394165,0.82785195,1959.3,1958.3,0.568553]
[1772536395161,0.57262195,1959.2,1958.3,0.568553]
[1772536396371,0.5744149,1959.4,1958.3,0.568553]
[1772536396872,0.5744149,1959.4,1958.4,0.56287443]
[1772536398068,7.94344132,1959.6,1958.4,0.81821443]
[1772536398273,0.54446042,1959.6,1958.5,0.55878126]
[1772536400168,0.80341353,1959.8,1958.7,0.59488599]
[1772536400470,0.54823353,1959.7,1958.7,0.59488599]